fUST/lending_fUST_20251124
["ID","MTS","AMOUNT","RATE_DAILY","PERIOD"]
[394804986,1763969439263,-500.0,7.873e-05,2]
[394804988,1763969439275,-500.0,7.873e-05,2]
[394804990,1763969439285,-500.0,7.873e-05,2]
[394804992,1763969439294,-500.0,7.873e-05,2]
[394804994,1763969439304,-500.0,7.873e-05,2]
[394804996,1763969439314,-500.0,7.873e-05,2]
[394804998,1763969439324,-500.0,7.873e-05,2]
[394805001,1763969439334,-500.0,7.873e-05,2]
[394805004,1763969439356,-500.0,7.873e-05,2]
[394805006,1763969439366,-500.0,7.873e-05,2]
[394805008,1763969439376,-500.0,7.873e-05,2]
[394805010,1763969439386,-500.0,7.873e-05,2]
[394805012,1763969439396,-500.0,7.873e-05,2]
[394805014,1763969439406,-350.0,7.873e-05,2]
[394805016,1763969439417,-500.0,7.873e-05,2]
[394805018,1763969439427,-500.0,7.873e-05,2]
[394805020,1763969439437,-500.0,7.873e-05,2]
[394805022,1763969439447,-500.0,7.873e-05,2]
[394805024,1763969439457,-500.0,7.873e-05,2]
[394805026,1763969439468,-500.0,7.873e-05,2]
[394805028,1763969439479,-500.0,7.873e-05,2]
[394805030,1763969439489,-500.0,7.873e-05,2]
[394805033,1763969439499,-500.0,7.873e-05,2]
[394805036,1763969439508,-500.0,7.873e-05,2]
[394805038,1763969439518,-1774.67042832,7.873e-05,2]
[394805040,1763969439528,-1774.67042832,7.873e-05,2]
[394805042,1763969439538,-419.83956413,7.873e-05,2]
[394805112,1763969440019,-1354.83086419,7.873e-05,2]
[394805114,1763969440029,-1774.67042832,7.873e-05,2]
[394805116,1763969440039,-1774.67042832,7.873e-05,2]
[394805118,1763969440048,-1774.67042832,7.873e-05,2]
[394805120,1763969440058,-500.0,7.873e-05,2]
[394805122,1763969440068,-500.0,7.873e-05,2]
[394805124,1763969440078,-500.0,7.873e-05,2]
[394805126,1763969440088,-200.0,7.873e-05,2]
[394805128,1763969440098,-500.0,7.873e-05,2]
[394805130,1763969440107,-500.0,7.873e-05,2]
[394805132,1763969440117,-1774.67042829,7.873e-05,2]
[394805134,1763969440127,-151.0,7.873e-05,2]
[394805136,1763969440137,-151.0,7.873e-05,2]
[394805138,1763969440146,-151.0,7.873e-05,2]
[394805140,1763969440157,-151.0,7.873e-05,2]
[394805142,1763969440166,-190.286361,7.873e-05,2]
[394805144,1763969440175,-500.0,7.874e-05,2]
[394805147,1763969440187,-1000.0,7.874e-05,2]
[394805149,1763969440197,-1000.0,7.874e-05,2]
[394805150,1763969440206,-1000.0,7.874e-05,2]
[394805152,1763969440216,-1000.0,7.874e-05,2]
[394805154,1763969440226,-1000.0,7.874e-05,2]
[394805156,1763969440235,-700.0,7.874e-05,2]
[394805158,1763969440245,-1000.0,7.874e-05,2]
[394805160,1763969440254,-1000.0,7.874e-05,2]
[394805162,1763969440263,-1000.0,7.874e-05,2]
[394805164,1763969440272,-1000.0,7.874e-05,2]
[394805166,1763969440282,-1000.0,7.874e-05,2]
[394805168,1763969440292,-1000.0,7.874e-05,2]
[394805171,1763969440302,-1000.0,7.874e-05,2]
[394805173,1763969440311,-1000.0,7.874e-05,2]
[394805174,1763969440321,-1000.0,7.874e-05,2]
[394805176,1763969440330,-1000.0,7.874e-05,2]
[394805178,1763969440341,-1000.0,7.874e-05,2]
[394805180,1763969440350,-1000.0,7.874e-05,2]
[394805182,1763969440360,-1019.30768181,7.874e-05,2]
[394805184,1763969440370,-46047.85427165,7.879e-05,2]
[394805188,1763969440397,-122882.43795563,7.879e-05,2]
[394805218,1763969440669,-4105.39032602,7.879e-05,2]
[394805221,1763969440681,-9754.24331428,7.879e-05,2]
[394805722,1763969446107,-1553.59001102,7.879e-05,2]
[394805723,1763969446283,-291566.44720769,7.879e-05,2]
[394805726,1763970245824,300.0,7.467e-05,2]
[394805729,1763970461050,163.40087225,7.429e-05,2]
[394805730,1763970483291,163.40087225,7.467e-05,2]
[394805731,1763970506072,163.40087225,7.467e-05,2]
[394805732,1763970528955,163.40087225,7.467e-05,2]
[394805733,1763970551292,163.40087225,7.467e-05,2]
[394805734,1763970574786,163.40087225,7.467e-05,2]
[394805735,1763970584520,3030.0,0.0002,30]
[394805736,1763970597109,163.40087225,7.467e-05,2]
[394805737,1763970619480,163.40087225,7.467e-05,2]
[394805797,1763970632269,-163.40087225,7.542e-05,2]
[394805799,1763970632279,-223.193,7.618e-05,2]
[394805801,1763970632290,-2478.09603217,7.688e-05,2]
[394805804,1763970632302,-1200.0,7.752e-05,2]
[394805806,1763970632312,-300.0,7.752e-05,2]
[394805808,1763970632322,-506.40065329,7.753e-05,2]
[394805810,1763970632333,-500.0,7.753e-05,2]
[394805812,1763970632343,-389.77039412,7.753e-05,2]
[394805814,1763970632352,-513.91098378,7.753e-05,2]
[394805816,1763970632361,-277.02567918,7.753e-05,2]
[394805818,1763970632373,-500.0,7.753e-05,2]
[394805820,1763970632383,-500.0,7.753e-05,2]
[394805822,1763970632392,-500.0,7.753e-05,2]
[394805824,1763970632401,-500.0,7.753e-05,2]
[394805826,1763970632411,-500.0,7.753e-05,2]
[394805827,1763970632419,-500.0,7.766e-05,2]
[394805830,1763970632429,-500.0,7.766e-05,2]
[394805831,1763970632438,-500.0,7.766e-05,2]
[394805834,1763970632447,-500.0,7.766e-05,2]
[394805835,1763970632456,-500.0,7.766e-05,2]
[394805837,1763970632465,-500.0,7.766e-05,2]
[394805839,1763970632475,-376.06669231,7.766e-05,2]
[394805841,1763970632485,-500.0,7.766e-05,2]
[394805844,1763970632494,-500.0,7.766e-05,2]
[394805846,1763970632504,-500.0,7.766e-05,2]
[394805847,1763970632514,-500.0,7.766e-05,2]
[394805849,1763970632523,-500.0,7.766e-05,2]
[394805851,1763970632532,-500.0,7.766e-05,2]
[394805853,1763970632541,-500.0,7.766e-05,2]
[394805855,1763970632552,-500.0,7.766e-05,2]
[394805857,1763970632562,-500.0,7.766e-05,2]
[394805859,1763970632571,-500.0,7.766e-05,2]
[394805861,1763970632580,-500.0,7.766e-05,2]
[394805863,1763970632589,-500.0,7.766e-05,2]
[394805865,1763970632598,-500.0,7.766e-05,2]
[394805867,1763970632607,-515.01102346,7.766e-05,2]
[394805869,1763970632617,-2000.0,7.769e-05,2]
[394805870,1763970632627,-2000.0,7.769e-05,2]
[394805872,1763970632636,-2000.0,7.769e-05,2]
[394805873,1763970632646,-1900.82070537,7.769e-05,2]
[394805875,1763970632655,-250.0,7.769e-05,2]
[394805877,1763970632668,-250.0,7.769e-05,2]
[394805879,1763970632677,-250.0,7.769e-05,2]
[394805881,1763970632687,-364.13449618,7.769e-05,2]
[394805882,1763970632698,-649.89335433,7.769e-05,2]
[394805883,1763970632707,-700.0,7.769e-05,2]
[394805884,1763970632716,-500.0,7.77e-05,2]
[394805885,1763970632726,-286.98984109,7.77e-05,2]
[394805886,1763970632736,-500.0,7.77e-05,2]
[394805887,1763970632745,-500.0,7.773e-05,2]
[394805888,1763970632754,-49773.84057296,7.774e-05,2]
[394805910,1763970637978,-500.0,7.77e-05,2]
[394805912,1763970637988,-500.0,7.77e-05,2]
[394805915,1763970637998,-500.0,7.77e-05,2]
[394805916,1763970638007,-500.0,7.77e-05,2]
[394805918,1763970638017,-500.0,7.77e-05,2]
[394805920,1763970638027,-500.0,7.77e-05,2]
[394805922,1763970638037,-500.0,7.77e-05,2]
[394805924,1763970638047,-77698.99611632,7.774e-05,2]
[394805934,1763970638126,-998.80874545,7.774e-05,2]
[394806166,1763970640372,-260.76561014,7.774e-05,2]
[394806168,1763970640384,-350.0842972,7.774e-05,2]
[394806989,1763970830174,169.7498626,3.399e-05,2]
[394806990,1763970835622,178.555,7.441e-05,2]
[394806991,1763970862191,178.555,7.441e-05,2]
[394806992,1763970888411,178.555,7.441e-05,2]
[394806993,1763970911595,170.8886519,7.441e-05,2]
[394806994,1763970917628,581.93877823,0.0002,30]
[394806995,1763970929460,500.0,0.0002,30]
[394806996,1763971243426,44523.24,0.0002,30]
[394806998,1763971632333,-178.555,7.516e-05,2]
[394806999,1763971632356,-169.67285481,7.535e-05,2]
[394807000,1763971632379,-306.0,7.642e-05,2]
[394807001,1763971632400,-300.0,7.642e-05,2]
[394807002,1763971632420,-500.48031394,7.643e-05,2]
[394807003,1763971632439,-500.0,7.643e-05,2]
[394807004,1763971632459,-501.35511586,7.643e-05,2]
[394807005,1763971632477,-324.28547272,7.643e-05,2]
[394807006,1763971632498,-501.6148578,7.643e-05,2]
[394807007,1763971632516,-503.32787072,7.643e-05,2]
[394807008,1763971632535,-500.0,7.643e-05,2]
[394807009,1763971632556,-500.0,7.643e-05,2]
[394807010,1763971632575,-506.10866076,7.643e-05,2]
[394807011,1763971632594,-2184.69446921,7.664e-05,2]
[394807012,1763971632617,-23807.92073598,7.669e-05,2]
[394807013,1763971692247,300.0,7.487e-05,2]
[394807014,1763971714358,300.0,7.487e-05,2]
[394807015,1763971737153,300.0,7.487e-05,2]
[394807016,1763971759910,463.74330405,7.487e-05,2]
[394807017,1763971782152,463.68714613,7.487e-05,2]
[394807045,1763971832266,-300.0,7.562e-05,2]
[394807047,1763971832276,-163.74330405,7.563e-05,2]
[394807049,1763971832286,-500.0,7.563e-05,2]
[394807051,1763971832296,-127.84581848,7.563e-05,2]
[394807055,1763971832323,-372.15418152,7.563e-05,2]
[394807057,1763971832334,-500.0,7.563e-05,2]
[394807058,1763971832344,-530.42184078,7.563e-05,2]
[394807060,1763971832353,-500.0,7.563e-05,2]
[394807062,1763971832363,-500.0,7.563e-05,2]
[394807064,1763971832372,-500.0,7.563e-05,2]
[394807066,1763971832382,-537.60666924,7.563e-05,2]
[394807068,1763971832391,-433.89886076,7.563e-05,2]
[394807089,1763971832537,-66.10113924,7.563e-05,2]
[394807090,1763971832547,-500.0,7.563e-05,2]
[394807092,1763971832556,-500.0,7.563e-05,2]
[394807094,1763971832565,-500.0,7.563e-05,2]
[394807096,1763971832574,-500.0,7.563e-05,2]
[394807098,1763971832583,-500.0,7.563e-05,2]
[394807100,1763971832591,-500.0,7.563e-05,2]
[394807102,1763971832600,-409.90056652,7.563e-05,2]
[394807571,1763971848033,-500.0,7.562e-05,2]
[394807573,1763971848044,-500.0,7.562e-05,2]
[394807575,1763971848054,-500.0,7.562e-05,2]
[394807577,1763971848065,-500.0,7.562e-05,2]
[394807579,1763971848075,-500.0,7.562e-05,2]
[394807581,1763971848085,-500.0,7.562e-05,2]
[394807583,1763971848095,-500.0,7.562e-05,2]
[394807585,1763971848104,-500.0,7.562e-05,2]
[394807587,1763971848114,-166.27939771,7.564e-05,2]
[394807589,1763971848124,-3033.72060221,7.564e-05,2]
[394807591,1763971848136,-23163.71328068,7.564e-05,2]
[394807811,1763971902977,224.881,7.413e-05,2]
[394807812,1763971967803,1001.3808631,6.93e-05,2]
[394807813,1763972041634,300.0,7.484e-05,2]
[394807816,1763972650463,168.19308826,7.479e-05,2]
[394807817,1763972665044,1202.80691174,7.456e-05,2]
[394807818,1763972665078,6866.38452963,7.456e-05,2]
[394807819,1763972728052,10000.0,0.00014,10]
[394807822,1763972812105,-168.19308826,7.454e-05,2]
[394807829,1763972901036,4110.0,0.0002021,59]
[394807894,1763973032876,-1000.0,7.452e-05,2]
[394807895,1763973032886,-51.77850472,7.452e-05,2]
[394807924,1763973038526,-500.0,7.451e-05,2]
[394807926,1763973038536,-457.05,7.451e-05,2]
[394807936,1763973038624,-42.95,7.451e-05,2]
[394807938,1763973038634,-500.0,7.451e-05,2]
[394807940,1763973038644,-500.0,7.451e-05,2]
[394807942,1763973038653,-372.43530132,7.451e-05,2]
[394807944,1763973038662,-500.0,7.451e-05,2]
[394807946,1763973038672,-500.0,7.451e-05,2]
[394807948,1763973038681,-500.0,7.451e-05,2]
[394807950,1763973038690,-500.0,7.451e-05,2]
[394807952,1763973038701,-500.0,7.451e-05,2]
[394807954,1763973038710,-500.0,7.451e-05,2]
[394807956,1763973038719,-500.0,7.451e-05,2]
[394807958,1763973038729,-500.0,7.451e-05,2]
[394807960,1763973038739,-500.0,7.451e-05,2]
[394807962,1763973038748,-439.9293313,7.451e-05,2]
[394807964,1763973038757,-500.0,7.451e-05,2]
[394807966,1763973038766,-500.0,7.451e-05,2]
[394807968,1763973038776,-500.0,7.451e-05,2]
[394807970,1763973038785,-500.0,7.451e-05,2]
[394807972,1763973038795,-500.0,7.451e-05,2]
[394807973,1763973038805,-500.0,7.451e-05,2]
[394807975,1763973038814,-500.0,7.451e-05,2]
[394807977,1763973038824,-500.0,7.451e-05,2]
[394807979,1763973038833,-500.0,7.451e-05,2]
[394807981,1763973038842,-500.0,7.451e-05,2]
[394807983,1763973038852,-500.0,7.451e-05,2]
[394807985,1763973038861,-500.0,7.451e-05,2]
[394807987,1763973038870,-344.83143031,7.451e-05,2]
[394807989,1763973038880,-500.0,7.451e-05,2]
[394807991,1763973038889,-500.0,7.451e-05,2]
[394807993,1763973038899,-500.0,7.451e-05,2]
[394807995,1763973038909,-500.0,7.451e-05,2]
[394807997,1763973038919,-500.0,7.451e-05,2]
[394808000,1763973038928,-500.0,7.451e-05,2]
[394808002,1763973038940,-500.0,7.451e-05,2]
[394808004,1763973038951,-500.0,7.451e-05,2]
[394808006,1763973038962,-500.0,7.451e-05,2]
[394808008,1763973038978,-500.0,7.451e-05,2]
[394808009,1763973038987,-500.0,7.451e-05,2]
[394808012,1763973038997,-500.0,7.451e-05,2]
[394808013,1763973039007,-500.0,7.451e-05,2]
[394808015,1763973039017,-500.0,7.451e-05,2]
[394808037,1763973039213,-500.0,7.451e-05,2]
[394808039,1763973039223,-500.0,7.451e-05,2]
[394808041,1763973039234,-500.0,7.451e-05,2]
[394808043,1763973039243,-500.0,7.451e-05,2]
[394808045,1763973039252,-500.0,7.451e-05,2]
[394808047,1763973039265,-500.0,7.451e-05,2]
[394808049,1763973039274,-500.0,7.451e-05,2]
[394808051,1763973039283,-500.0,7.451e-05,2]
[394808053,1763973039293,-500.0,7.451e-05,2]
[394808055,1763973039303,-500.0,7.451e-05,2]
[394808057,1763973039313,-500.0,7.451e-05,2]
[394808059,1763973039322,-480.943101,7.451e-05,2]
[394808061,1763973039332,-500.0,7.451e-05,2]
[394808063,1763973039342,-500.0,7.451e-05,2]
[394808065,1763973039351,-500.0,7.451e-05,2]
[394808067,1763973039361,-500.0,7.451e-05,2]
[394808069,1763973039370,-948.22149528,7.452e-05,2]
[394808071,1763973039380,-1000.0,7.452e-05,2]
[394808073,1763973039389,-1000.0,7.452e-05,2]
[394808075,1763973039398,-1000.0,7.452e-05,2]
[394808077,1763973039410,-1000.0,7.452e-05,2]
[394808079,1763973039419,-1000.0,7.452e-05,2]
[394808081,1763973039429,-514.84070869,7.452e-05,2]
[394808083,1763973039438,-1000.0,7.452e-05,2]
[394808085,1763973039447,-250.0,7.452e-05,2]
[394808087,1763973039457,-1000.0,7.452e-05,2]
[394808089,1763973039466,-250.0,7.452e-05,2]
[394808091,1763973039475,-1000.0,7.452e-05,2]
[394808093,1763973039485,-250.0,7.452e-05,2]
[394808095,1763973039495,-1000.0,7.452e-05,2]
[394808097,1763973039504,-250.0,7.452e-05,2]
[394808099,1763973039514,-1000.0,7.452e-05,2]
[394808101,1763973039523,-250.0,7.452e-05,2]
[394808103,1763973039533,-1000.0,7.452e-05,2]
[394808105,1763973039542,-250.0,7.452e-05,2]
[394808107,1763973039551,-1019.30768181,7.452e-05,2]
[394808109,1763973039560,-250.0,7.452e-05,2]
[394808111,1763973039569,-2184.69446921,7.452e-05,2]
[394808113,1763973039579,-250.0,7.452e-05,2]
[394808115,1763973039588,-250.0,7.452e-05,2]
[394808118,1763973039599,-250.0,7.452e-05,2]
[394808119,1763973039608,-305.93817214,7.452e-05,2]
[394808122,1763973039620,-250.0,7.452e-05,2]
[394808124,1763973039630,-250.0,7.452e-05,2]
[394808126,1763973039640,-250.0,7.452e-05,2]
[394808127,1763973039649,-160.0,7.452e-05,2]
[394808129,1763973039659,-250.0,7.452e-05,2]
[394808131,1763973039668,-160.0,7.452e-05,2]
[394808133,1763973039677,-250.0,7.452e-05,2]
[394808135,1763973039687,-250.0,7.452e-05,2]
[394808137,1763973039697,-250.0,7.452e-05,2]
[394808139,1763973039705,-250.0,7.452e-05,2]
[394808141,1763973039716,-160.0,7.452e-05,2]
[394808143,1763973039733,-250.0,7.452e-05,2]
[394808145,1763973039745,-250.0,7.452e-05,2]
[394808147,1763973039755,-160.0,7.452e-05,2]
[394808149,1763973039764,-250.0,7.452e-05,2]
[394808152,1763973039774,-250.0,7.452e-05,2]
[394808153,1763973039783,-160.0,7.452e-05,2]
[394808156,1763973039792,-250.0,7.452e-05,2]
[394808158,1763973039803,-205.74228992,7.452e-05,2]
[394808160,1763973039813,-223.4259693,7.452e-05,2]
[394808161,1763973039823,-250.0,7.452e-05,2]
[394808163,1763973039832,-250.0,7.452e-05,2]
[394808165,1763973039842,-300.0,7.452e-05,2]
[394808167,1763973039852,-300.0,7.452e-05,2]
[394808169,1763973039861,-300.0,7.452e-05,2]
[394808172,1763973039871,-500.0,7.452e-05,2]
[394808173,1763973039880,-434.30530008,7.452e-05,2]
[394808175,1763973039889,-500.0,7.452e-05,2]
[394808177,1763973039899,-500.0,7.452e-05,2]
[394808179,1763973039908,-500.0,7.452e-05,2]
[394808182,1763973039919,-500.0,7.452e-05,2]
[394808184,1763973039928,-500.0,7.452e-05,2]
[394808186,1763973039938,-1200.0,7.453e-05,2]
[394808188,1763973039947,-177.12151082,7.453e-05,2]
[394808189,1763973039956,-257707.00578974,7.456e-05,2]
[394808277,1763973040811,-1000.0,7.456e-05,2]
[394808830,1763973046291,-792.54,7.456e-05,2]
[394808890,1763973046877,-50914.01211071,7.456e-05,2]
[394808906,1763973047022,-28432.89430669,7.456e-05,2]
[394811505,1763973149628,215.616,7.234e-05,2]
[394811506,1763973165358,150.0,7.234e-05,2]
[394811507,1763973173144,215.616,7.234e-05,2]
[394811508,1763973181945,1241.24044635,7.207e-05,2]
[394811509,1763973196116,215.616,7.234e-05,2]
[394811510,1763973218171,215.616,7.234e-05,2]
[394811511,1763973240972,215.616,7.234e-05,2]
[394811512,1763973263642,215.616,7.234e-05,2]
[394811513,1763973286058,215.616,7.234e-05,2]
[394811514,1763973309072,215.616,7.234e-05,2]
[394811515,1763973331107,215.616,7.234e-05,2]
[394811516,1763973353413,215.616,7.234e-05,2]
[394811517,1763973375741,215.616,7.234e-05,2]
[394811518,1763973397772,215.616,7.234e-05,2]
[394811519,1763973420667,215.616,7.234e-05,2]
[394811520,1763973463122,157.81,0.00014,10]
[394811521,1763973588512,228.044768,6.445e-05,2]
[394811522,1763973703031,249.164,7.202e-05,2]
[394811523,1763973946444,-184.93385781,7.338e-05,2]
[394811524,1763973946468,-300.0,7.346e-05,2]
[394811525,1763973946492,-300.0,7.346e-05,2]
[394811526,1763973946515,-300.0,7.346e-05,2]
[394811527,1763973946538,-1200.0,7.346e-05,2]
[394811528,1763973946561,-300.0,7.346e-05,2]
[394811529,1763973946585,-1200.0,7.347e-05,2]
[394811530,1763973946608,-500.0,7.347e-05,2]
[394811531,1763973946631,-500.0,7.347e-05,2]
[394811532,1763973946653,-500.0,7.347e-05,2]
[394811533,1763973946676,-500.0,7.347e-05,2]
[394811534,1763973946699,-300.0,7.347e-05,2]
[394811535,1763973946722,-500.0,7.347e-05,2]
[394811536,1763973946745,-500.0,7.347e-05,2]
[394811537,1763973946767,-500.0,7.347e-05,2]
[394811538,1763973946790,-488.02550033,7.347e-05,2]
[394811539,1763973946812,-500.0,7.347e-05,2]
[394811540,1763973946840,-835.87381764,7.347e-05,2]
[394811541,1763973946869,-835.87381764,7.347e-05,2]
[394811542,1763973946891,-500.0,7.347e-05,2]
[394811543,1763973946914,-500.0,7.347e-05,2]
[394811544,1763973946941,-835.87381764,7.347e-05,2]
[394811545,1763973946968,-835.87381764,7.347e-05,2]
[394811546,1763973946991,-417.50244185,7.347e-05,2]
[394811547,1763973947017,-835.87381764,7.347e-05,2]
[394811548,1763973947040,-500.0,7.347e-05,2]
[394811549,1763973947069,-835.87381764,7.347e-05,2]
[394811550,1763973947091,-500.0,7.347e-05,2]
[394811551,1763973947119,-835.87381764,7.347e-05,2]
[394811552,1763973947146,-835.87381764,7.347e-05,2]
[394811553,1763973947170,-500.0,7.347e-05,2]
[394811554,1763973947198,-835.87381764,7.347e-05,2]
[394811555,1763973947400,-835.87381764,7.347e-05,2]
[394811556,1763973947424,-500.0,7.347e-05,2]
[394811557,1763973947450,-835.87381764,7.347e-05,2]
[394811558,1763973947478,-835.87381764,7.347e-05,2]
[394811559,1763973947504,-835.87381764,7.347e-05,2]
[394811560,1763973947528,-273.99293313,7.347e-05,2]
[394811561,1763973947557,-835.87381764,7.347e-05,2]
[394811562,1763973947584,-835.87381764,7.347e-05,2]
[394811563,1763973947609,-835.87381764,7.347e-05,2]
[394811564,1763973947636,-835.87381764,7.347e-05,2]
[394811565,1763973947662,-835.87381764,7.347e-05,2]
[394811566,1763973947688,-835.87381764,7.347e-05,2]
[394811567,1763973947714,-835.87381764,7.347e-05,2]
[394811568,1763973947740,-835.87381764,7.347e-05,2]
[394811569,1763973947766,-835.87381764,7.347e-05,2]
[394811570,1763973947792,-835.87381764,7.347e-05,2]
[394811571,1763973947818,-835.87381764,7.347e-05,2]
[394811572,1763973947844,-835.87381764,7.347e-05,2]
[394811573,1763973947871,-835.87381764,7.347e-05,2]
[394811574,1763973947897,-835.87381764,7.347e-05,2]
[394811575,1763973947924,-835.87381764,7.347e-05,2]
[394811576,1763973947950,-835.87381764,7.347e-05,2]
[394811577,1763973947976,-835.87381764,7.347e-05,2]
[394811578,1763973948001,-835.87381764,7.347e-05,2]
[394811579,1763973948026,-835.87381764,7.347e-05,2]
[394811580,1763973948051,-835.87381764,7.347e-05,2]
[394811581,1763973948076,-835.87381764,7.347e-05,2]
[394811582,1763973948102,-835.87381764,7.347e-05,2]
[394811583,1763973948130,-835.87381764,7.347e-05,2]
[394811584,1763973948156,-835.87381764,7.347e-05,2]
[394811585,1763973948182,-835.87381764,7.347e-05,2]
[394811586,1763973948210,-835.87381764,7.347e-05,2]
[394811587,1763973948237,-835.87381764,7.347e-05,2]
[394811588,1763973948264,-835.87381764,7.347e-05,2]
[394811589,1763973948291,-835.87381764,7.347e-05,2]
[394811590,1763973948318,-835.87381764,7.347e-05,2]
[394811591,1763973948345,-835.87381764,7.347e-05,2]
[394811592,1763973948372,-835.87381764,7.347e-05,2]
[394811593,1763973948398,-835.87381764,7.347e-05,2]
[394811594,1763973948423,-835.87381764,7.347e-05,2]
[394811595,1763973948448,-835.87381764,7.347e-05,2]
[394811596,1763973948473,-835.87381764,7.347e-05,2]
[394811597,1763973948499,-835.87381764,7.347e-05,2]
[394811598,1763973948524,-835.87381764,7.347e-05,2]
[394811599,1763973948549,-835.87381764,7.347e-05,2]
[394811600,1763973948574,-835.87381764,7.347e-05,2]
[394811601,1763973948599,-835.87381764,7.347e-05,2]
[394811602,1763973948624,-835.87381764,7.347e-05,2]
[394811603,1763973948649,-835.87381764,7.347e-05,2]
[394811604,1763973948675,-835.87381764,7.347e-05,2]
[394811605,1763973948700,-835.87381764,7.347e-05,2]
[394811606,1763973948725,-835.87381764,7.347e-05,2]
[394811607,1763973948751,-835.87381764,7.347e-05,2]
[394811608,1763973948777,-835.87381764,7.347e-05,2]
[394811609,1763973948803,-835.87381764,7.347e-05,2]
[394811610,1763973948826,-500.0,7.347e-05,2]
[394811611,1763973948850,-500.0,7.347e-05,2]
[394811612,1763973948874,-500.0,7.347e-05,2]
[394811613,1763973948897,-500.0,7.347e-05,2]
[394811614,1763973948921,-500.0,7.347e-05,2]
[394811615,1763973948944,-500.0,7.347e-05,2]
[394811616,1763973948967,-537.18417162,7.347e-05,2]
[394811617,1763973948989,-500.0,7.347e-05,2]
[394811618,1763973949012,-500.0,7.347e-05,2]
[394811619,1763973949036,-500.0,7.347e-05,2]
[394811620,1763973949059,-500.0,7.347e-05,2]
[394811621,1763973949083,-500.0,7.347e-05,2]
[394811622,1763973949106,-500.0,7.347e-05,2]
[394811623,1763973949129,-500.0,7.347e-05,2]
[394811624,1763973949151,-500.0,7.347e-05,2]
[394811625,1763973949174,-500.0,7.347e-05,2]
[394811626,1763973949196,-500.0,7.347e-05,2]
[394811627,1763973949226,-500.0,7.347e-05,2]
[394811628,1763973949248,-500.0,7.347e-05,2]
[394811629,1763973949275,-500.0,7.347e-05,2]
[394811630,1763973949300,-500.0,7.347e-05,2]
[394811631,1763973949322,-500.0,7.347e-05,2]
[394811632,1763973949344,-500.0,7.347e-05,2]
[394811633,1763973949367,-500.0,7.347e-05,2]
[394811634,1763973949389,-633.27913536,7.347e-05,2]
[394811635,1763973949418,-3025.06714955,7.347e-05,2]
[394811636,1763973949444,-3025.06714955,7.347e-05,2]
[394811637,1763973949469,-3025.06714955,7.347e-05,2]
[394811638,1763973949495,-3025.06714955,7.347e-05,2]
[394811639,1763973949522,-3025.06714955,7.347e-05,2]
[394811640,1763973949548,-3025.06714955,7.347e-05,2]
[394811641,1763973949573,-3025.06714955,7.347e-05,2]
[394811642,1763973949598,-3025.06714955,7.347e-05,2]
[394811643,1763973949623,-3025.06714955,7.347e-05,2]
[394811644,1763973949649,-3025.06714955,7.347e-05,2]
[394811645,1763973949675,-3025.06714955,7.347e-05,2]
[394811646,1763973949700,-3025.06714955,7.347e-05,2]
[394811647,1763973949726,-3025.06714955,7.347e-05,2]
[394811648,1763973949752,-3025.06714955,7.347e-05,2]
[394811649,1763973949778,-3025.06714955,7.347e-05,2]
[394811650,1763973949804,-3025.06714955,7.347e-05,2]
[394811651,1763973949830,-3025.06714955,7.347e-05,2]
[394811652,1763973949857,-3025.06714955,7.347e-05,2]
[394811653,1763973949883,-3025.06714955,7.347e-05,2]
[394811654,1763973949909,-3025.06714955,7.347e-05,2]
[394811655,1763973949935,-3025.06714955,7.347e-05,2]
[394811656,1763973949961,-3025.06714955,7.347e-05,2]
[394811657,1763973950128,-3025.06714955,7.347e-05,2]
[394811658,1763973950156,-3025.06714955,7.347e-05,2]
[394811659,1763973950183,-3025.06714955,7.347e-05,2]
[394811660,1763973950214,-3025.06714955,7.347e-05,2]
[394811661,1763973950242,-3025.06714962,7.347e-05,2]
[394811662,1763973950265,-500.0,7.348e-05,2]
[394811663,1763973950292,-731064.0922283,7.349e-05,2]
[394811664,1763973957887,-158935.9077717,7.349e-05,2]
[394811665,1763974007704,10328.54278565,7.249e-05,2]
[394811666,1763974159216,-300.0,7.247e-05,2]
[394811667,1763974159240,-306.0,7.248e-05,2]
[394811668,1763974159265,-500.0,7.248e-05,2]
[394811669,1763974159474,-500.0,7.248e-05,2]